[Event "*** Titled Tuesday Blitz"]
[Site "Chess.com"]
[Date "2021.03.30"]
[Round "4"]
[White "korbul"]
[Black "Caterpiller35"]
[Result "1-0"]
[WhiteElo "2577"]
[BlackElo "2391"]
[TimeControl "180+1"]
[EndTime "10:39:22 PDT"]
[Termination "korbul won by resignation"]

1. d4 {[%clk 0:03:00.9]} 1... Nf6 {[%clk 0:02:59.6]} 2. Nf3 {[%clk 0:03:00.4]}
2... e6 {[%clk 0:02:57.4]} 3. Bf4 {[%clk 0:02:59.4]} 3... d5 {[%clk 0:02:55.4]}
4. e3 {[%clk 0:02:59]} 4... c5 {[%clk 0:02:55.9]} 5. c3 {[%clk 0:02:57.3]} 5...
Bd6 {[%clk 0:02:55.5]} 6. Bg3 {[%clk 0:02:56.5]} 6... Qc7 {[%clk 0:02:53.1]} 7.
dxc5 {[%clk 0:02:56.3]} 7... Qxc5 {[%clk 0:02:52.4]} 8. Nbd2 {[%clk 0:02:56.3]}
8... O-O {[%clk 0:02:51.3]} 9. Bd3 {[%clk 0:02:55.4]} 9... Nbd7 {[%clk
0:02:46.9]} 10. Qc2 {[%clk 0:02:47]} 10... e5 {[%clk 0:02:45.9]} 11. e4 {[%clk
0:02:45.4]} 11... dxe4 {[%clk 0:02:42.6]} 12. Nxe4 {[%clk 0:02:44.9]} 12... Nxe4
{[%clk 0:02:42.7]} 13. Bxe4 {[%clk 0:02:44.6]} 13... Nf6 {[%clk 0:02:43]} 14.
O-O {[%clk 0:02:34.7]} 14... Nxe4 {[%clk 0:02:41.1]} 15. Qxe4 {[%clk 0:02:33.8]}
15... f5 {[%clk 0:02:40.2]} 16. Qc2 {[%clk 0:02:12.3]} 16... f4 {[%clk
0:02:16.4]} 17. Ng5 {[%clk 0:02:09.3]} 17... Bf5 {[%clk 0:02:13.1]} 18. Qb3+
{[%clk 0:02:07.4]} 18... Kh8 {[%clk 0:02:12.2]} 19. Nf7+ {[%clk 0:02:06.6]}
19... Rxf7 {[%clk 0:02:11.8]} 20. Qxf7 {[%clk 0:02:05.4]} 20... Bg6 {[%clk
0:02:12]} 21. Qxb7 {[%clk 0:02:02.2]} 21... Rb8 {[%clk 0:02:12.1]} 22. Qa6
{[%clk 0:01:38.8]} 22... fxg3 {[%clk 0:02:08.6]} 23. hxg3 {[%clk 0:01:38.1]}
23... e4 {[%clk 0:01:55.9]} 24. Rad1 {[%clk 0:01:15.7]} 24... Be5 {[%clk
0:01:34.1]} 25. b4 {[%clk 0:01:12.3]} 25... Qxc3 {[%clk 0:01:30.2]} 26. Rc1
{[%clk 0:01:03.5]} 26... Qxb4 {[%clk 0:00:46.4]} 27. Rc8+ {[%clk 0:01:01.1]}
27... Qf8 {[%clk 0:00:45.6]} 28. Rxf8+ {[%clk 0:00:59.6]} 28... Rxf8 {[%clk
0:00:46.5]} 29. Qxa7 {[%clk 0:00:52.9]} 29... h5 {[%clk 0:00:45.9]} 30. Qc5
{[%clk 0:00:48.6]} 30... Rf5 {[%clk 0:00:45]} 31. Qc6 {[%clk 0:00:37]} 31... Kh7
{[%clk 0:00:44.6]} 32. Qxe4 {[%clk 0:00:28.6]} 32... Bf6 {[%clk 0:00:34.9]} 33.
Qe3 {[%clk 0:00:27]} 33... Ra5 {[%clk 0:00:33.2]} 34. Qd2 {[%clk 0:00:24.9]}
34... Ra3 {[%clk 0:00:28.6]} 35. Re1 {[%clk 0:00:24.3]} 35... Bc3 {[%clk
0:00:23.1]} 36. Qc1 {[%clk 0:00:24]} 36... Bb4 {[%clk 0:00:19.9]} 37. Re2 {[%clk
0:00:20.7]} 37... Rc3 {[%clk 0:00:14.9]} 38. Qb2 {[%clk 0:00:20.3]} 38... Ba5
{[%clk 0:00:15]} 39. Re5 {[%clk 0:00:20.3]} 39... Rc2 {[%clk 0:00:07.1]} 40.
Qxc2 {[%clk 0:00:19.7]} 1-0

[Event "*** Titled Tuesday Blitz"]
[Site "Chess.com"]
[Date "2021.03.30"]
[Round "4"]
[White "sorrm8thatscheckm8"]
[Black "Gnechko_Ruslan"]
[Result "1-0"]
[WhiteElo "2623"]
[BlackElo "2454"]
[TimeControl "180+1"]
[EndTime "10:39:23 PDT"]
[Termination "sorrm8thatscheckm8 won by resignation"]

1. d4 {[%clk 0:03:00.9]} 1... Nf6 {[%clk 0:02:56.7]} 2. c4 {[%clk 0:03:01.1]}
2... e6 {[%clk 0:02:56.6]} 3. Nf3 {[%clk 0:03:01.5]} 3... b6 {[%clk 0:02:56.3]}
4. a3 {[%clk 0:03:01.3]} 4... Bb7 {[%clk 0:02:56.1]} 5. Nc3 {[%clk 0:03:01.8]}
5... d5 {[%clk 0:02:56.6]} 6. cxd5 {[%clk 0:03:01.4]} 6... Nxd5 {[%clk
0:02:56.1]} 7. Qc2 {[%clk 0:03:01.7]} 7... g6 {[%clk 0:02:54.3]} 8. e4 {[%clk
0:03:00.9]} 8... Nxc3 {[%clk 0:02:54]} 9. bxc3 {[%clk 0:03:01.8]} 9... Bg7
{[%clk 0:02:54]} 10. Bb5+ {[%clk 0:02:58.3]} 10... c6 {[%clk 0:02:54.4]} 11. Bd3
{[%clk 0:02:57]} 11... O-O {[%clk 0:02:54.6]} 12. O-O {[%clk 0:02:57.6]} 12...
Nd7 {[%clk 0:02:54.9]} 13. Bg5 {[%clk 0:02:55.8]} 13... Bf6 {[%clk 0:02:51.4]}
14. Bh6 {[%clk 0:02:54.3]} 14... Bg7 {[%clk 0:02:51.4]} 15. Qd2 {[%clk
0:02:53.8]} 15... c5 {[%clk 0:02:50.6]} 16. Rad1 {[%clk 0:02:50]} 16... cxd4
{[%clk 0:02:50]} 17. cxd4 {[%clk 0:02:49.9]} 17... Rc8 {[%clk 0:02:50.5]} 18.
Bxg7 {[%clk 0:02:48.8]} 18... Kxg7 {[%clk 0:02:49.4]} 19. h4 {[%clk 0:02:48.9]}
19... Qc7 {[%clk 0:02:42.2]} 20. h5 {[%clk 0:02:43.9]} 20... Nf6 {[%clk
0:02:36.1]} 21. h6+ {[%clk 0:02:40.7]} 21... Kg8 {[%clk 0:02:36.3]} 22. Rfe1
{[%clk 0:02:40.8]} 22... Rfd8 {[%clk 0:02:31.4]} 23. Qg5 {[%clk 0:02:29.9]}
23... Qe7 {[%clk 0:02:18.8]} 24. Qf4 {[%clk 0:02:11.9]} 24... Rc7 {[%clk
0:02:11.8]} 25. a4 {[%clk 0:01:56.3]} 25... Rdc8 {[%clk 0:02:11.2]} 26. Qe5
{[%clk 0:01:51.6]} 26... Ne8 {[%clk 0:01:54.4]} 27. a5 {[%clk 0:01:42.6]} 27...
bxa5 {[%clk 0:01:50]} 28. Qxa5 {[%clk 0:01:40.7]} 28... Ba8 {[%clk 0:01:41.6]}
29. Qa1 {[%clk 0:01:32.4]} 29... Qf8 {[%clk 0:01:33.3]} 30. d5 {[%clk
0:01:27.9]} 30... exd5 {[%clk 0:01:31.1]} 31. exd5 {[%clk 0:01:21.8]} 31... Qxh6
{[%clk 0:01:30.5]} 32. Ba6 {[%clk 0:01:17]} 32... Rd8 {[%clk 0:01:26.8]} 33. d6
{[%clk 0:01:15.1]} 33... Rcd7 {[%clk 0:01:19]} 34. Bb5 {[%clk 0:01:10.1]} 34...
Bxf3 {[%clk 0:01:18.2]} 35. Bxd7 {[%clk 0:01:00.6]} 35... Qg5 {[%clk 0:01:08.6]}
36. Bh3 {[%clk 0:00:51]} 36... Bxd1 {[%clk 0:01:06.7]} 37. d7 {[%clk 0:00:39]}
37... Nf6 {[%clk 0:00:39.4]} 38. Rxd1 {[%clk 0:00:38.7]} 38... h5 {[%clk
0:00:39.2]} 39. Qxa7 {[%clk 0:00:32.2]} 39... Ng4 {[%clk 0:00:39.3]} 40. Qc7
{[%clk 0:00:27.7]} 40... Kg7 {[%clk 0:00:33.3]} 41. Bxg4 {[%clk 0:00:24.9]}
41... hxg4 {[%clk 0:00:33.1]} 42. Qc3+ {[%clk 0:00:23.4]} 42... Kh7 {[%clk
0:00:31.8]} 43. Qc4 {[%clk 0:00:21.5]} 43... Qe7 {[%clk 0:00:30.4]} 44. Qxg4
{[%clk 0:00:19.9]} 44... Kg7 {[%clk 0:00:27.1]} 45. Qd4+ {[%clk 0:00:18.8]}
45... Kh7 {[%clk 0:00:26.9]} 46. g3 {[%clk 0:00:17.8]} 46... Qe6 {[%clk
0:00:24.5]} 47. Kg2 {[%clk 0:00:17.8]} 47... Qe7 {[%clk 0:00:22.3]} 48. Rh1+
{[%clk 0:00:17.5]} 1-0

[Event "*** Titled Tuesday Blitz"]
[Site "Chess.com"]
[Date "2021.03.30"]
[Round "4"]
[White "Nesty_Javi_Chess"]
[Black "mac0504"]
[Result "1-0"]
[WhiteElo "2620"]
[BlackElo "2440"]
[TimeControl "180+1"]
[EndTime "10:39:24 PDT"]
[Termination "Nesty_Javi_Chess won on time"]

1. e4 {[%clk 0:03:00.9]} 1... c5 {[%clk 0:02:57.3]} 2. Nf3 {[%clk 0:03:00.7]}
2... e6 {[%clk 0:02:57.2]} 3. d4 {[%clk 0:03:01.3]} 3... cxd4 {[%clk 0:02:58.1]}
4. Nxd4 {[%clk 0:03:02]} 4... Nc6 {[%clk 0:02:58.2]} 5. Nc3 {[%clk 0:03:01.8]}
5... Qc7 {[%clk 0:02:58.2]} 6. Be3 {[%clk 0:03:02.2]} 6... a6 {[%clk 0:02:56.7]}
7. Qd2 {[%clk 0:03:02.2]} 7... Nf6 {[%clk 0:02:56.6]} 8. f3 {[%clk 0:03:02.7]}
8... Be7 {[%clk 0:02:55.9]} 9. O-O-O {[%clk 0:03:02.8]} 9... b5 {[%clk
0:02:49.7]} 10. g4 {[%clk 0:03:01.9]} 10... Nxd4 {[%clk 0:02:32.5]} 11. Bxd4
{[%clk 0:02:34.2]} 11... Bb7 {[%clk 0:02:31.3]} 12. g5 {[%clk 0:02:25.5]} 12...
Nh5 {[%clk 0:02:30.7]} 13. Bh3 {[%clk 0:02:25.5]} 13... O-O-O {[%clk 0:02:21.3]}
14. Kb1 {[%clk 0:02:16.2]} 14... Kb8 {[%clk 0:02:10.2]} 15. Bf1 {[%clk
0:01:49.8]} 15... Rc8 {[%clk 0:02:00.1]} 16. Bd3 {[%clk 0:01:13.8]} 16... Rhd8
{[%clk 0:01:43]} 17. Qf2 {[%clk 0:01:11.2]} 17... Bc5 {[%clk 0:01:36.5]} 18. Ne2
{[%clk 0:01:07.3]} 18... e5 {[%clk 0:01:13.9]} 19. Bxc5 {[%clk 0:01:03.1]} 19...
Qxc5 {[%clk 0:01:14.8]} 20. Qh4 {[%clk 0:00:46.1]} 20... g6 {[%clk 0:01:12.5]}
21. Rhe1 {[%clk 0:00:46.1]} 21... d5 {[%clk 0:01:06.3]} 22. Ng3 {[%clk 0:00:36]}
22... Nf4 {[%clk 0:00:55.2]} 23. Qxh7 {[%clk 0:00:17.7]} 23... dxe4 {[%clk
0:00:39.8]} 24. Nxe4 {[%clk 0:00:12.7]} 24... Qc7 {[%clk 0:00:24]} 25. Qg7
{[%clk 0:00:11.3]} 25... Nxd3 {[%clk 0:00:12.8]} 26. cxd3 {[%clk 0:00:12.2]}
26... Qc2+ {[%clk 0:00:12.1]} 27. Ka1 {[%clk 0:00:12.6]} 27... Rxd3 {[%clk
0:00:12.3]} 28. Qxe5+ {[%clk 0:00:13]} 28... Ka8 {[%clk 0:00:12]} 29. Rb1 {[%clk
0:00:09.8]} 29... Rxf3 {[%clk 0:00:06.4]} 30. Nd6 {[%clk 0:00:10]} 30... Rb8
{[%clk 0:00:04.9]} 31. Nxb7 {[%clk 0:00:09.8]} 31... Rxb7 {[%clk 0:00:05.1]} 32.
Qe8+ {[%clk 0:00:09.8]} 32... Rb8 {[%clk 0:00:03.6]} 33. Qd7 {[%clk 0:00:10.4]}
33... Rb7 {[%clk 0:00:02.7]} 34. Qd4 {[%clk 0:00:08.7]} 34... Qc8 {[%clk
0:00:01.6]} 35. Rbc1 {[%clk 0:00:08.7]} 35... Qb8 {[%clk 0:00:01.2]} 36. Qe4
{[%clk 0:00:08.6]} 36... Rf5 {[%clk 0:00:01]} 37. Rc6 {[%clk 0:00:08.7]} 1-0

[Event "*** Titled Tuesday Blitz"]
[Site "Chess.com"]
[Date "2021.03.30"]
[Round "4"]
[White "MartinHollan"]
[Black "skeyman"]
[Result "1-0"]
[WhiteElo "2474"]
[BlackElo "2234"]
[TimeControl "180+1"]
[EndTime "10:39:25 PDT"]
[Termination "MartinHollan won by checkmate"]

1. d4 {[%clk 0:03:00.9]} 1... Nf6 {[%clk 0:02:59.5]} 2. Nf3 {[%clk 0:03:01.8]}
2... e6 {[%clk 0:02:59.9]} 3. c4 {[%clk 0:03:01.7]} 3... d5 {[%clk 0:03:00]} 4.
Nc3 {[%clk 0:03:01.3]} 4... Be7 {[%clk 0:03:00.1]} 5. Bf4 {[%clk 0:03:00.5]}
5... a6 {[%clk 0:03:00.4]} 6. e3 {[%clk 0:03:00.4]} 6... dxc4 {[%clk 0:03:00.8]}
7. Bxc4 {[%clk 0:03:00.1]} 7... b5 {[%clk 0:03:01.3]} 8. Be2 {[%clk 0:03:00.3]}
8... Bb7 {[%clk 0:03:02.2]} 9. O-O {[%clk 0:02:59.8]} 9... Nbd7 {[%clk
0:03:02.7]} 10. Ne5 {[%clk 0:02:56]} 10... Rc8 {[%clk 0:03:01.8]} 11. Bf3 {[%clk
0:02:43.7]} 11... Bxf3 {[%clk 0:03:00.8]} 12. Qxf3 {[%clk 0:02:43.3]} 12... c5
{[%clk 0:03:01.2]} 13. dxc5 {[%clk 0:02:36.9]} 13... Nxc5 {[%clk 0:03:00.3]} 14.
Nc6 {[%clk 0:02:25.2]} 14... Qb6 {[%clk 0:02:57.3]} 15. Nxe7 {[%clk 0:02:21.7]}
15... Kxe7 {[%clk 0:02:57.2]} 16. Bg5 {[%clk 0:02:06.9]} 16... h6 {[%clk
0:02:56.6]} 17. Bxf6+ {[%clk 0:02:05.9]} 17... gxf6 {[%clk 0:02:56.3]} 18. Rfd1
{[%clk 0:01:54]} 18... b4 {[%clk 0:02:54.1]} 19. Ne4 {[%clk 0:01:52]} 19... Nxe4
{[%clk 0:02:46.6]} 20. Qxe4 {[%clk 0:01:52.9]} 20... Rhg8 {[%clk 0:02:43.9]} 21.
g3 {[%clk 0:01:50.7]} 21... f5 {[%clk 0:02:40]} 22. Qh4+ {[%clk 0:01:49]} 22...
Ke8 {[%clk 0:02:13]} 23. Rac1 {[%clk 0:01:37.3]} 23... Qb7 {[%clk 0:01:58.1]}
24. Rxc8+ {[%clk 0:01:27.9]} 24... Qxc8 {[%clk 0:01:57.6]} 25. Qxb4 {[%clk
0:01:27.8]} 25... Rg4 {[%clk 0:01:56.6]} 26. Qd6 {[%clk 0:00:52.6]} 26... Rc4
{[%clk 0:01:52.3]} 27. Qe5 {[%clk 0:00:52.7]} 27... Ke7 {[%clk 0:01:50.3]} 28.
Kg2 {[%clk 0:00:49]} 28... Rc1 {[%clk 0:01:48.4]} 29. Qd6+ {[%clk 0:00:46.5]}
29... Kf6 {[%clk 0:01:48.1]} 30. Qd4+ {[%clk 0:00:46.1]} 30... Ke7 {[%clk
0:01:48.1]} 31. Rxc1 {[%clk 0:00:45.3]} 31... Qxc1 {[%clk 0:01:47.4]} 32. Qa7+
{[%clk 0:00:45.3]} 32... Kf6 {[%clk 0:01:46.8]} 33. Qd4+ {[%clk 0:00:43.6]}
33... Ke7 {[%clk 0:01:46.3]} 34. Qc3 {[%clk 0:00:38.5]} 34... Qb1 {[%clk
0:01:37]} 35. a3 {[%clk 0:00:37.5]} 35... Qe4+ {[%clk 0:01:36.2]} 36. f3 {[%clk
0:00:37.3]} 36... Qd5 {[%clk 0:01:36]} 37. Kf2 {[%clk 0:00:36.4]} 37... h5
{[%clk 0:01:35.7]} 38. Qb4+ {[%clk 0:00:35.3]} 38... Ke8 {[%clk 0:01:33.7]} 39.
Ke2 {[%clk 0:00:33.3]} 39... Qc6 {[%clk 0:01:27.6]} 40. Qc3 {[%clk 0:00:29.8]}
40... Qb5+ {[%clk 0:01:27.5]} 41. Kf2 {[%clk 0:00:30.2]} 41... Ke7 {[%clk
0:01:26.1]} 42. h4 {[%clk 0:00:29.9]} 42... f6 {[%clk 0:01:25.2]} 43. Ke1 {[%clk
0:00:28.4]} 43... Kf7 {[%clk 0:01:21.2]} 44. Qc7+ {[%clk 0:00:27.7]} 44... Kg6
{[%clk 0:01:21.1]} 45. Qc3 {[%clk 0:00:24.4]} 45... Qd5 {[%clk 0:01:19.2]} 46.
e4 {[%clk 0:00:20.1]} 46... fxe4 {[%clk 0:01:19.1]} 47. Qc2 {[%clk 0:00:20.5]}
47... f5 {[%clk 0:01:19.1]} 48. fxe4 {[%clk 0:00:20.6]} 48... fxe4 {[%clk
0:01:19.4]} 49. Qd2 {[%clk 0:00:21.1]} 49... Qf5 {[%clk 0:01:10.7]} 50. Qg5+
{[%clk 0:00:21]} 50... Qxg5 {[%clk 0:01:10.5]} 51. hxg5 {[%clk 0:00:21.9]} 51...
Kxg5 {[%clk 0:01:11.4]} 52. b4 {[%clk 0:00:22.1]} 52... Kg4 {[%clk 0:01:10.6]}
53. a4 {[%clk 0:00:20.3]} 53... Kxg3 {[%clk 0:01:09.6]} 54. b5 {[%clk
0:00:20.8]} 54... h4 {[%clk 0:01:09.9]} 55. b6 {[%clk 0:00:21]} 55... h3 {[%clk
0:01:10.3]} 56. b7 {[%clk 0:00:21.6]} 56... h2 {[%clk 0:01:10.6]} 57. b8=Q+
{[%clk 0:00:21.8]} 57... Kg2 {[%clk 0:01:11]} 58. Qg8+ {[%clk 0:00:21.8]} 58...
Kf3 {[%clk 0:01:10.7]} 59. Qh7 {[%clk 0:00:22]} 59... Kg2 {[%clk 0:01:10.6]} 60.
Qg6+ {[%clk 0:00:22.3]} 60... Kf3 {[%clk 0:01:10.3]} 61. Qh5+ {[%clk 0:00:22.6]}
61... Kg2 {[%clk 0:01:10.5]} 62. Qg4+ {[%clk 0:00:22.6]} 62... Kh1 {[%clk
0:01:04.8]} 63. Kf1 {[%clk 0:00:22.5]} 63... e3 {[%clk 0:01:03.3]} 64. Qg2#
{[%clk 0:00:23.4]} 1-0

[Event "*** Titled Tuesday Blitz"]
[Site "Chess.com"]
[Date "2021.03.30"]
[Round "4"]
[White "mr65"]
[Black "AniJak"]
[Result "1-0"]
[WhiteElo "2109"]
[BlackElo "2306"]
[TimeControl "180+1"]
[EndTime "10:39:25 PDT"]
[Termination "mr65 won by resignation"]

1. e4 {[%clk 0:03:00.9]} 1... Nf6 {[%clk 0:02:59.4]} 2. e5 {[%clk 0:03:00.1]}
2... Nd5 {[%clk 0:02:59.5]} 3. d4 {[%clk 0:03:00.1]} 3... d6 {[%clk 0:02:59.2]}
4. Nf3 {[%clk 0:03:00.2]} 4... Bg4 {[%clk 0:02:58.4]} 5. Be2 {[%clk 0:02:59.9]}
5... Nc6 {[%clk 0:02:57.1]} 6. exd6 {[%clk 0:02:58.2]} 6... cxd6 {[%clk
0:02:56.4]} 7. O-O {[%clk 0:02:58]} 7... g6 {[%clk 0:02:56.3]} 8. h3 {[%clk
0:02:57.6]} 8... Bxf3 {[%clk 0:02:55.3]} 9. Bxf3 {[%clk 0:02:56.8]} 9... Nb6
{[%clk 0:02:55.2]} 10. Re1 {[%clk 0:02:46.9]} 10... Bg7 {[%clk 0:02:55.2]} 11.
c3 {[%clk 0:02:39.6]} 11... O-O {[%clk 0:02:54.5]} 12. Bg5 {[%clk 0:02:38.8]}
12... f6 {[%clk 0:02:42.8]} 13. Be3 {[%clk 0:02:36.5]} 13... e5 {[%clk
0:02:42.3]} 14. dxe5 {[%clk 0:02:32.5]} 14... fxe5 {[%clk 0:02:42.2]} 15. Bd5+
{[%clk 0:02:26.4]} 15... Kh8 {[%clk 0:02:36.1]} 16. Na3 {[%clk 0:02:20.7]} 16...
Nxd5 {[%clk 0:02:27.2]} 17. Qxd5 {[%clk 0:02:19.3]} 17... Qf6 {[%clk 0:02:28.1]}
18. Rad1 {[%clk 0:02:12]} 18... Rad8 {[%clk 0:02:26.5]} 19. Nc4 {[%clk
0:02:11.2]} 19... Ne7 {[%clk 0:02:13.8]} 20. Qxb7 {[%clk 0:02:06.3]} 20... d5
{[%clk 0:02:14.2]} 21. Nxe5 {[%clk 0:02:00]} 21... Rb8 {[%clk 0:01:50.4]} 22.
Qxa7 {[%clk 0:01:44.1]} 22... Qxe5 {[%clk 0:01:36.7]} 23. Bd4 {[%clk 0:01:40.5]}
23... Nc6 {[%clk 0:01:36.4]} 24. Bxe5 {[%clk 0:01:19.4]} 24... Nxa7 {[%clk
0:01:36.2]} 25. Bxg7+ {[%clk 0:01:18]} 25... Kxg7 {[%clk 0:01:35]} 26. Rxd5
{[%clk 0:01:15.9]} 26... Nc6 {[%clk 0:01:19.5]} 27. b4 {[%clk 0:01:12.4]} 27...
Rbd8 {[%clk 0:01:13.9]} 28. Rc5 {[%clk 0:01:08]} 28... Rd6 {[%clk 0:01:06.9]}
29. b5 {[%clk 0:01:03.5]} 29... Na5 {[%clk 0:01:06.9]} 30. Re7+ {[%clk
0:00:59.3]} 30... Rf7 {[%clk 0:01:05.8]} 31. Rcc7 {[%clk 0:00:57]} 31... Rxe7
{[%clk 0:01:04.1]} 32. Rxe7+ {[%clk 0:00:56.7]} 32... Kf6 {[%clk 0:00:59]} 33.
Rxh7 {[%clk 0:00:55.4]} 33... Rd1+ {[%clk 0:00:57.4]} 34. Kh2 {[%clk 0:00:53.9]}
34... Rd2 {[%clk 0:00:58.3]} 35. Ra7 {[%clk 0:00:51.3]} 35... Nc4 {[%clk
0:00:56.4]} 36. Kg3 {[%clk 0:00:49.6]} 36... Rd3+ {[%clk 0:00:54.4]} 37. f3
{[%clk 0:00:48.6]} 37... Rxc3 {[%clk 0:00:54.7]} 38. Rc7 {[%clk 0:00:46.3]}
38... Ke6 {[%clk 0:00:46.6]} 39. a4 {[%clk 0:00:41.7]} 39... Kd6 {[%clk
0:00:30.5]} 40. b6 {[%clk 0:00:40.4]} 40... Rc2 {[%clk 0:00:22.5]} 41. a5 {[%clk
0:00:39.6]} 41... Ne3 {[%clk 0:00:20.4]} 42. Rxc2 {[%clk 0:00:38.3]} 42... Nxc2
{[%clk 0:00:20.4]} 43. Kf4 {[%clk 0:00:33.9]} 43... Kc6 {[%clk 0:00:19.6]} 44.
Kg5 {[%clk 0:00:33.3]} 44... Ne1 {[%clk 0:00:18.7]} 45. Kxg6 {[%clk 0:00:29.6]}
45... Nxg2 {[%clk 0:00:18.8]} 46. Kg5 {[%clk 0:00:29.3]} 46... Kb7 {[%clk
0:00:16.8]} 47. h4 {[%clk 0:00:29]} 47... Ka6 {[%clk 0:00:17.2]} 48. h5 {[%clk
0:00:29]} 48... Ne3 {[%clk 0:00:16.2]} 49. h6 {[%clk 0:00:28.7]} 49... Nd5
{[%clk 0:00:16.2]} 50. h7 {[%clk 0:00:28.1]} 1-0

[Event "*** Titled Tuesday Blitz"]
[Site "Chess.com"]
[Date "2021.03.30"]
[Round "4"]
[White "prachiti01"]
[Black "BeyondMadness"]
[Result "1-0"]
[WhiteElo "1977"]
[BlackElo "2283"]
[TimeControl "180+1"]
[EndTime "10:39:25 PDT"]
[Termination "prachiti01 won on time"]

1. Nf3 {[%clk 0:03:00.9]} 1... g6 {[%clk 0:02:58.4]} 2. g3 {[%clk 0:03:00.3]}
2... Bg7 {[%clk 0:02:58.7]} 3. Bg2 {[%clk 0:03:00.2]} 3... c5 {[%clk 0:02:58.6]}
4. O-O {[%clk 0:02:59.9]} 4... Nc6 {[%clk 0:02:58]} 5. d3 {[%clk 0:02:59.5]}
5... d6 {[%clk 0:02:56.6]} 6. c4 {[%clk 0:02:58.9]} 6... e5 {[%clk 0:02:55.1]}
7. Nbd2 {[%clk 0:02:58]} 7... Nge7 {[%clk 0:02:53.6]} 8. Rb1 {[%clk 0:02:57.4]}
8... Rb8 {[%clk 0:02:48.4]} 9. a3 {[%clk 0:02:57.1]} 9... a6 {[%clk 0:02:44.2]}
10. b4 {[%clk 0:02:56]} 10... cxb4 {[%clk 0:02:44.3]} 11. axb4 {[%clk 0:02:56]}
11... b5 {[%clk 0:02:44.4]} 12. cxb5 {[%clk 0:02:36.7]} 12... axb5 {[%clk
0:02:45.3]} 13. e3 {[%clk 0:02:16.8]} 13... O-O {[%clk 0:02:43.1]} 14. Ne4
{[%clk 0:02:13.4]} 14... h6 {[%clk 0:02:33.4]} 15. Nc3 {[%clk 0:02:09.3]} 15...
Be6 {[%clk 0:02:27.7]} 16. e4 {[%clk 0:02:08.6]} 16... f5 {[%clk 0:02:11.9]} 17.
Bd2 {[%clk 0:01:58.1]} 17... Qd7 {[%clk 0:01:46.4]} 18. Ne1 {[%clk 0:01:49.5]}
18... Nd4 {[%clk 0:01:43.3]} 19. Be3 {[%clk 0:01:43.7]} 19... f4 {[%clk
0:01:37.8]} 20. Bxd4 {[%clk 0:01:43]} 20... exd4 {[%clk 0:01:36.5]} 21. Nd5
{[%clk 0:01:42.3]} 21... fxg3 {[%clk 0:01:28.1]} 22. hxg3 {[%clk 0:01:37]} 22...
Nc6 {[%clk 0:01:24.9]} 23. Nf4 {[%clk 0:01:27.5]} 23... Bf7 {[%clk 0:01:12.9]}
24. Bh3 {[%clk 0:01:17.7]} 24... Qe7 {[%clk 0:01:09.3]} 25. Nd5 {[%clk
0:01:15.1]} 25... Bxd5 {[%clk 0:01:05.7]} 26. exd5 {[%clk 0:01:16]} 26... Ne5
{[%clk 0:01:00]} 27. Be6+ {[%clk 0:01:15.7]} 27... Kh7 {[%clk 0:00:59.4]} 28. f4
{[%clk 0:01:15.1]} 28... Nd7 {[%clk 0:00:57.6]} 29. Nf3 {[%clk 0:01:13]} 29...
Nf6 {[%clk 0:00:56.2]} 30. Qb3 {[%clk 0:01:08.2]} 30... Nh5 {[%clk 0:00:54.8]}
31. Rbe1 {[%clk 0:01:05.3]} 31... Qf6 {[%clk 0:00:50.6]} 32. Kg2 {[%clk
0:01:04.7]} 32... Rbe8 {[%clk 0:00:46.5]} 33. Qc2 {[%clk 0:01:03.1]} 33... Re7
{[%clk 0:00:43]} 34. Qc6 {[%clk 0:01:02.5]} 34... Ra7 {[%clk 0:00:25.7]} 35. Re2
{[%clk 0:00:57.5]} 35... Ra3 {[%clk 0:00:23]} 36. Qxb5 {[%clk 0:00:56.3]} 36...
Rc3 {[%clk 0:00:18.3]} 37. Qa6 {[%clk 0:00:51.4]} 37... g5 {[%clk 0:00:16.9]}
38. fxg5 {[%clk 0:00:50.5]} 38... hxg5 {[%clk 0:00:12.9]} 39. Nd2 {[%clk
0:00:49.8]} 39... Qg6 {[%clk 0:00:10.4]} 40. Rxf8 {[%clk 0:00:47.4]} 40... Bxf8
{[%clk 0:00:11.3]} 41. Ne4 {[%clk 0:00:46.6]} 41... Rc1 {[%clk 0:00:07.2]} 42.
Qa7+ {[%clk 0:00:45.8]} 42... Bg7 {[%clk 0:00:06.7]} 43. Qa8 {[%clk 0:00:45.5]}
43... Be5 {[%clk 0:00:05.1]} 44. Qb7+ {[%clk 0:00:38.6]} 44... Kh6 {[%clk
0:00:03.9]} 45. Qf7 {[%clk 0:00:34.4]} 1-0

[Event "*** Titled Tuesday Blitz"]
[Site "Chess.com"]
[Date "2021.03.30"]
[Round "4"]
[White "Artem_Sadovsky"]
[Black "WisdomGame"]
[Result "0-1"]
[WhiteElo "2621"]
[BlackElo "2025"]
[TimeControl "180+1"]
[EndTime "10:39:26 PDT"]
[Termination "WisdomGame won on time"]

1. a4 {[%clk 0:02:56.1]} 1... g6 {[%clk 0:02:56.1]} 2. h4 {[%clk 0:02:55.5]}
2... h5 {[%clk 0:02:55.7]} 3. a5 {[%clk 0:02:49.9]} 3... a6 {[%clk 0:02:55.5]}
4. d4 {[%clk 0:02:48.8]} 4... Bg7 {[%clk 0:02:55.3]} 5. e4 {[%clk 0:02:47.9]}
5... d6 {[%clk 0:02:55.2]} 6. c3 {[%clk 0:02:45.7]} 6... Nc6 {[%clk 0:02:55.3]}
7. Bc4 {[%clk 0:02:34.7]} 7... Nf6 {[%clk 0:02:50.1]} 8. f3 {[%clk 0:02:33.5]}
8... e5 {[%clk 0:02:48.1]} 9. Ne2 {[%clk 0:02:32.4]} 9... O-O {[%clk 0:02:47.6]}
10. Bg5 {[%clk 0:02:31.7]} 10... Ne7 {[%clk 0:02:39.7]} 11. Qb3 {[%clk
0:02:08.5]} 11... Nh7 {[%clk 0:02:35]} 12. Be3 {[%clk 0:02:00.7]} 12... c6
{[%clk 0:02:26.7]} 13. dxe5 {[%clk 0:01:55.8]} 13... dxe5 {[%clk 0:02:25]} 14.
Na3 {[%clk 0:01:40.6]} 14... Qe8 {[%clk 0:02:11.2]} 15. Rd1 {[%clk 0:01:34.2]}
15... Kh8 {[%clk 0:02:11]} 16. Bc5 {[%clk 0:00:49]} 16... f5 {[%clk 0:02:06.4]}
17. Ng3 {[%clk 0:00:49.6]} 17... Nf6 {[%clk 0:02:00.8]} 18. O-O {[%clk
0:00:35.8]} 18... f4 {[%clk 0:01:56.5]} 19. Nh1 {[%clk 0:00:35.6]} 19... Nh7
{[%clk 0:01:54.4]} 20. Nf2 {[%clk 0:00:34.3]} 20... Bf6 {[%clk 0:01:54]} 21. Be6
{[%clk 0:00:27.7]} 21... Bxh4 {[%clk 0:01:43]} 22. Nd3 {[%clk 0:00:28]} 22...
Bf6 {[%clk 0:01:35.5]} 23. Nc4 {[%clk 0:00:28.4]} 23... Bxe6 {[%clk 0:01:32.7]}
24. Qb4 {[%clk 0:00:24.5]} 24... Bxc4 {[%clk 0:01:28.6]} 25. Qxc4 {[%clk
0:00:25.4]} 25... Qf7 {[%clk 0:01:28.4]} 26. Qb4 {[%clk 0:00:23.6]} 26... g5
{[%clk 0:01:09.1]} 27. Nxe5 {[%clk 0:00:21.5]} 27... Bxe5 {[%clk 0:01:08.6]} 28.
Bxe7 {[%clk 0:00:21.8]} 28... Rg8 {[%clk 0:00:54.4]} 29. Rd7 {[%clk 0:00:22.3]}
29... Qe6 {[%clk 0:00:48.7]} 30. Qxb7 {[%clk 0:00:19]} 30... g4 {[%clk
0:00:47.2]} 31. Bh4 {[%clk 0:00:13.8]} 31... Qg6 {[%clk 0:00:37.2]} 32. fxg4
{[%clk 0:00:07.1]} 32... hxg4 {[%clk 0:00:37.2]} 33. Rxf4 {[%clk 0:00:05.4]}
33... Raf8 {[%clk 0:00:17.2]} 34. Rxg4 {[%clk 0:00:05.4]} 34... Qh6 {[%clk
0:00:13.2]} 35. Rxg8+ {[%clk 0:00:05.9]} 35... Rxg8 {[%clk 0:00:14.1]} 36. Bf2
{[%clk 0:00:03.9]} 36... Qc1+ {[%clk 0:00:12.3]} 0-1